Cogmind - Beta 12 @@@ ROGUE MODE // 2024.01.10 @ 23:14:22 Player: puppuppit Result: Destroyed by Y-64 Sentinel with Wave Gun Performance ------------- Evolutions (5) 2500 Regions Visited (15) 3000 Robots Destroyed (163) 815 Value Destroyed (7495) 7495 Prototype IDs (35) 700 Alien Tech Used (0) 0 Bonus (6217) 6217 TOTAL SCORE: 20727 Bonus ------- Triggered High Security 500 High Alert Combat Kills 2125 Follower Combat Kills 2399 Entered Garrisons 600 Used RIF Installer 1000 Aligned with FarCom 300 Friendly Fire -707 Cogmind --------- Core Integrity 0/1000 Matter 249/300 Energy 330/450 System Corruption 45% Temperature Cool (9) Movement Flying (45) Location -5/Factory Parts ------- > --- POWER (2) -------- (None) > --- PROPULSION (4) --- Carbon-fiber Leg Cesium-ion Thruster > --- UTILITY (8) ------ Energy Well Hacking Suite Relay Coupler [Grunt] (3) Relay Coupler [Duelist] (7) Relay Coupler [Sentry] (3) Relay Coupler [Demolisher] (22) > --- WEAPON (3) ------- (None) > --- INVENTORY (5) ---- Relay Coupler [Behemoth] (13) Relay Coupler [Proto] (9) Relay Coupler [Proto] (9) Relay Coupler [Proto] (9) Improved Remote Datajack Peak State ------------ > --- POWER ------------ Light Angular Momentum Engine Micro Antimatter Reactor > --- PROPULSION ------- Antigrav Array Antigrav Array > --- UTILITY ---------- Advanced Heat Sink Improved Utility Shielding Hacking Suite Improved Hacking Suite Relay Coupler [NC] Relay Coupler [Grunt] Relay Coupler [Sentry] Relay Coupler [Hunter] > --- WEAPON ----------- Heavy Mass Driver Advanced Remote Datajack > --- INVENTORY -------- Improved Sensor Array Authchip [R/Combat] Relay Coupler [Proto] Relay Coupler [Proto] Relay Coupler [Proto] [Rating: 97] Favorites ----------- Power Micro Antimatter Reactor Engine Light Ion Engine Power Core Light Nuclear Core Reactor Micro Antimatter Reactor Propulsion Hover Unit Treads Improved Treads Leg Carbon-fiber Leg Wheel Wheel Hover Unit Hover Unit Flight Unit VTOL Module Utility Hacking Suite Device Advanced Heat Sink Storage Small Storage Unit Processor Improved Armor Integrity Analyzer Hackware Hacking Suite Protection Utility Shielding Weapon Beam Cannon Energy Gun Phase Gun Energy Cannon Beam Cannon Ballistic Gun Autogun Ballistic Cannon Mass Driver Launcher Heavy Shock Bomb Launcher Special Weapon Advanced Remote Datajack Slashing Weapon Segregator Special Melee Weapon Datajack Build | -11 -10 -10 -9 -9 -9 -8 -8 -8 -8 -8 -6 -6 -5 -5 -5 ------- Run | Jun Mat Min Mat Min Exi Min Mat Sto Gar Rec Fac Gar Fac Gar Fac Slots Evolved 10 | . . . 2 . . . 2 . . . 4 . 2 . . Power 1 | . . . . . . . . . . . . . 1 . . Propulsion 2 | . . . . . . . 2 . . . . . . . . Utility 6 | . . . 2 . . . . . . . 4 . . . . Weapon 1 | . . . . . . . . . . . . . 1 . . Parts Attached 295 | 9 19 4 9 5 4 9 22 3 25 2 14 48 13 98 11 Power 37 | 2 3 . . . 1 . 4 . 2 . 1 7 1 16 . Engine 16 | 2 3 . . . . . 3 . . . . 5 1 2 . Core 19 | . . . . . 1 . 1 . 2 . 1 1 . 13 . Reactor 2 | . . . . . . . . . . . . 1 . 1 . Propulsion 74 | 2 8 2 3 2 . 1 1 . 5 . 4 12 1 30 3 Treads 2 | . . . . . . . . . . . . . . 2 . Leg 13 | . . . . . . . . . . . 2 5 . 6 . Wheel 2 | 2 . . . . . . . . . . . . . . . Hover 23 | . 7 2 3 2 . 1 . . . . 1 2 1 4 . Flight 34 | . 1 . . . . . 1 . 5 . 1 5 . 18 3 Utility 95 | 3 2 . 2 1 2 6 10 1 5 2 6 20 6 23 6 Device 31 | 1 . . . . 1 5 6 . 1 . 4 5 2 5 1 Storage 14 | 2 1 . . . . . . 1 1 . . . 2 6 1 Processor 7 | . . . 1 . . . . . . . 1 1 . 3 1 Hackware 31 | . 1 . . . . . 1 . 3 1 1 12 . 9 3 Protection 12 | . . . 1 1 1 1 3 . . 1 . 2 2 . . Artifact . | . . . . . . . . . . . . . . . . Weapon 89 | 2 6 2 4 2 1 2 7 2 13 . 3 9 5 29 2 Energy Gun 27 | 2 . . 1 2 . . 1 . 6 . . 5 . 10 . Energy Cannon 19 | . 4 1 3 . . 1 3 1 3 . . 1 2 . . Ballistic Gun 8 | . . . . . . . . . . . 2 . . 6 . Ballistic Cannon 7 | . . . . . . . . . . . . 1 2 4 . Launcher 10 | . . . . . . . 2 1 3 . . . . 4 . Special Weapon 5 | . . . . . . . . . 1 . . 1 1 . 2 Impact Weapon . | . . . . . . . . . . . . . . . . Slashing Weapon 5 | . . . . . . . . . . . . . . 5 . Piercing Weapon . | . . . . . . . . . . . . . . . . Special Melee Weapon 8 | . 2 1 . . 1 1 1 . . . 1 1 . . . Unidentified Prototypes 4 | . . . . . 1 . . 1 . . 1 . 1 . . Corrupted Parts 6 | . . . . . . . . . . . . . . 6 . System Corruption 41 | . . . . . . . . . . . . . . 41 . Parts Lost 69 | . 2 1 1 4 . . 1 . 2 4 1 4 . 42 7 Power 11 | . . . 1 . . . . . . . . . . 9 1 Propulsion 31 | . 1 1 . 2 . . . . 1 2 1 3 . 18 2 Utility 13 | . . . . 1 . . 1 . . 2 . 1 . 5 3 Weapon 14 | . 1 . . 1 . . . . 1 . . . . 10 1 Highest Loss Streak 12 | . 1 1 1 4 . . 1 . 1 3 1 3 . 12 4 To Critical Strikes 2 | . . . . . . . . . . . . . . 2 . Average Slot Usage (%) 81 | . 92 99 84 76 76 78 71 70 78 72 72 79 81 81 88 Engine 3 | . 14 14 10 . . . 6 9 2 . . 1 3 1 . Core 2 | . . . . . 6 4 2 . 6 4 2 . . 4 4 Reactor 1 | . . . . . . . . . . . . 3 5 1 . Leg 1 | . . . . . . . . . . . 3 4 . . 19 Hover 10 | . 18 27 22 21 22 22 . . . . 3 7 11 8 . Flight 5 | . . . . . . . 9 9 25 25 12 3 . 6 2 Device 6 | . 6 . . . . 3 8 9 5 . 13 11 5 5 9 Storage 6 | . 14 14 11 11 11 11 9 7 8 9 6 . . 4 4 Processor 3 | . . . 8 11 4 . . . . . 5 5 . 4 5 Hackware 20 | . 7 14 11 11 11 11 12 18 21 24 16 27 35 26 24 Protection 2 | . . . 11 11 10 8 5 . . . . 1 4 1 . Energy Gun 2 | . 1 . . 10 4 . 1 . . . . 2 . 3 3 Energy Cannon 4 | . 17 14 10 . . 6 9 9 3 . . 1 1 . . Ballistic Cannon 1 | . . . . . . . . . . . . 1 5 1 3 Launcher 1 | . . . . . . . 6 8 2 . . . . 2 . Special Melee Weapon 2 | . 2 13 . . 6 10 . . . . 5 2 . . . Naked Turns . | . . . . . . . . . . . . . . . . Heaviest Build 77 | 17 15 14 15 11 12 17 31 27 27 15 22 38 45 77 35 Greatest Support 60 | 26 26 12 12 12 12 12 50 50 50 16 25 60 52 60 60 Greatest Overweight (x) 3 | . 1 1 1 1 . 1 . . 1 . 1 2 . 3 . Average Overweight (x) . | . . . . . . . . . . . . . . . . Largest Inventory Capacity 20 | 8 8 8 8 8 8 8 8 8 8 8 8 8 5 20 5 Average Capacity 7 | 7 8 8 8 8 8 8 8 7 7 8 8 5 5 9 5 Most Carried 13 | 3 8 8 8 8 8 8 8 8 8 8 8 8 5 13 5 Average Carried 6 | 1 7 7 7 6 7 7 7 7 7 7 7 5 4 5 4 Final Capacity 8 | 8 8 8 8 8 8 8 8 8 8 8 8 5 5 5 5 Final Carried 8 | 3 8 7 8 7 8 8 8 8 8 7 8 5 5 5 5 Class Distribution -------------------- 25% | Scavenger-Mutant 24% | Mutant 12% | Bothacker-Mutant 12% | Hacker-Mutant 5% | Scavenger-Skirmisher 5% | Commander-Mutant 4% | Bothacker-Scout Dominant Class ---------------- Scavenger-Mutant | -10/Materials Mutant | -10/Mines Mutant | -9/Materials Mutant | -9/Mines Scavenger-Mutant | -9/Exiles Scavenger-Mutant | -8/Mines Mutant | -8/Materials Hacker-Mutant | -8/Storage Hacker-Sprinter | -8/Garrison Bothacker-Mutant | -8/Recycling Bothacker-Mutant | -6/Factory Bothacker-Scout | -6/Garrison Commander-Mutant | -5/Factory Scavenger-Mutant | -5/Garrison Bothacker-Mutant | -5/Factory Resources | -11 -10 -10 -9 -9 -9 -8 -8 -8 -8 -8 -6 -6 -5 -5 -5 ----------- Run | Jun Mat Min Mat Min Exi Min Mat Sto Gar Rec Fac Gar Fac Gar Fac Matter Collected 5347 | 284 152 79 90 40 . 130 335 55 403 41 . 879 488 2059 312 Remotely . | . . . . . . . . . . . . . . . . Salvage Created 6237 | 142 547 177 233 34 . . 1108 424 637 . . 551 705 1622 57 Parts 346 | 9 41 19 12 . . . 68 23 41 . . 35 33 59 6 Haulers Intercepted 6 | . 2 . . . . . 2 . . . . . 2 . . Recyclers Shooed 4 | . 1 . 1 . . . . 1 . . . . 1 . . Parts Field Recycled . | . . . . . . . . . . . . . . . . Retrieved Matter . | . . . . . . . . . . . . . . . . Parts Self-Destructed . | . . . . . . . . . . . . . . . . Prevented . | . . . . . . . . . . . . . . . . Kills | -11 -10 -10 -9 -9 -9 -8 -8 -8 -8 -8 -6 -6 -5 -5 -5 ------- Run | Jun Mat Min Mat Min Exi Min Mat Sto Gar Rec Fac Gar Fac Gar Fac Combat Hostiles Destroyed 114 | . 13 5 5 1 . . 20 6 14 . . 12 6 31 1 Melee 1 | . . . . . . . . . . . . . 1 . . Guns 20 | . 1 . . 1 . . 1 . . . . 4 . 13 . Cannons 63 | . 12 5 4 . . . 11 1 5 . . 7 5 12 1 AOE 23 | . . . . . . . 7 5 8 . . . . 3 . Classes Destroyed 17 | 2 7 . 1 . . . . . 1 . . 1 2 3 . Worker 14 | . 2 1 . . . . 1 2 . . . . 8 . . Builder 3 | . 1 . . . . . . . . . . . 1 . 1 Tunneler 5 | 3 . 1 . . . . . . . . . . 1 . . Hauler 6 | . 2 . . . . . 2 . . . . . 2 . . Recycler 4 | 1 . . . . . . . 1 . . . . 2 . . Operator 3 | . 2 . . . . . 1 . . . . . . . . Watcher 13 | . 3 . . . . . 5 1 . . . . 3 . 1 Swarmer 39 | . 9 3 . 1 . . 7 . 3 . . . 3 13 . Cutter 2 | . . . . . . . . . . . . 2 . . . Saboteur 1 | . . . . . . . . . . . . . 1 . . Grunt 37 | . 4 2 3 . . . 6 4 7 . . 5 1 5 . Duelist 4 | . . . . . . . . . . . . . . 4 . Sentry 19 | . . . 2 . . . 7 2 1 . . 3 . 4 . Demolisher 2 | . . . . . . . . . . . . . 2 . . Specialist 2 | . . . . . . . . . . . . . . 2 . Hunter 1 | . . . . . . . . . . . . . . 1 . Programmer 8 | . . . . . . . . . 3 . . 2 . 2 1 Best Kill Streak 14 | 3 4 4 4 1 . . 6 7 4 . . 4 14 3 2 Combat Bots Only 6 | . 3 3 4 1 . . 6 4 4 . . 4 3 3 1 Max Kills in Single Turn 10 | 1 2 1 1 1 . . 3 5 2 . . 1 10 3 1 Gunslinging . | . . . . . . . . . . . . . . . . Exploded 3 | . . . . . . . 3 3 2 . . . . 3 . Melee 1 | . . . . . . . . . . . . . 1 . . Uniques/NPCs Destroyed . | . . . . . . . . . . . . . . . . Combat | -11 -10 -10 -9 -9 -9 -8 -8 -8 -8 -8 -6 -6 -5 -5 -5 -------- Run | Jun Mat Min Mat Min Exi Min Mat Sto Gar Rec Fac Gar Fac Gar Fac Damage Taken 9065 | . 350 205 156 381 . 102 583 564 599 192 340 903 502 3434 754 Core 1942 | . 79 85 15 181 . 51 59 29 79 71 104 173 62 674 280 Absorbed by Shields 224 | . . . . . . . 65 4 51 . . 69 . 35 . Redirected to Shielding 160 | . . . 12 42 . . . . . . . . . 106 . Regen/Repaired (Parts) 179 | . 59 . 86 . . . . 34 . . . . . . . Core Remaining (%) 59 | 100 . 34 . . . 38 . . . 56 . 67 . . . Volleys Fired 626 | 13 65 21 39 16 . 1 83 24 41 3 . 67 44 180 29 Largest 3 | 2 2 2 2 1 . 1 2 2 2 1 . 1 2 3 2 Hottest 180 | 80 120 120 120 75 . 60 150 150 111 7 . 113 138 180 145 Shots Fired 840 | 26 91 25 42 16 . 1 122 38 44 3 . 66 54 273 39 Gun 264 | 26 10 . . 16 . . 13 . 8 . . 30 . 152 9 Cannon 480 | . 81 25 42 . . 1 85 26 16 . . 35 51 107 11 Launcher 70 | . . . . . . . 24 12 20 . . . . 14 . Special 26 | . . . . . . . . . . 3 . 1 3 . 19 Kinetic 246 | . . . . . . . . . . . . 19 41 175 11 Thermal 440 | 26 91 25 42 10 . 1 98 26 15 . . 46 . 49 11 Explosive . | . . . . . . . . . . . . . . . . Electromagnetic 130 | . . . . 6 . . 24 12 29 . . . 10 49 . Robot Hit Streak 13 | 12 9 10 8 6 . . 6 4 9 3 . 6 6 11 13 Robot Miss Streak 7 | 3 5 3 4 5 . 1 4 3 4 1 . 3 5 7 2 Penetration Max 1 | . . . . . . . . . . . . . 1 1 1 Secondary Targets . | . . . . . . . . . . . . . . . . Shots Hit Robots 472 | 17 54 20 31 9 . 6 63 18 18 2 3 39 26 140 26 Core Hits 227 | 5 24 8 7 3 . . 37 14 18 . . 14 21 72 4 Critical Kills 4 | . . . 1 . . . 1 . . . . 1 . 1 . Critical Parts Destroyed . | . . . . . . . . . . . . . . . . Critical Strikes 24 | . . . 1 1 . . 1 . . . . 3 6 10 2 Burn 4 | . . . . . . . . . . . . . . 4 . Meltdown 2 | . . . 1 . . . 1 . . . . . . . . Destroy 2 | . . . . . . . . . . . . 1 . 1 . Blast 15 | . . . . . . . . . . . . 2 6 5 2 Corrupt 1 | . . . . 1 . . . . . . . . . . . Melee Attacks 35 | . . 2 . . . 6 . . . . 3 11 . 13 . Thermal 13 | . . . . . . . . . . . . . . 13 . Impact . | . . . . . . . . . . . . . . . . Slashing . | . . . . . . . . . . . . . . . . Piercing . | . . . . . . . . . . . . . . . . Sneak Attacks 10 | . . 2 . . . 6 . . . . 2 . . . . Combat Hostiles . | . . . . . . . . . . . . . . . . Follow-up Attacks . | . . . . . . . . . . . . . . . . Damage Inflicted 15068 | 190 986 321 546 182 . . 1749 1027 946 . . 1318 3173 4210 420 Guns 3266 | 190 88 . . 182 . . 101 . 48 . . 331 . 2237 89 Cannons 7569 | . 898 321 546 . . . 1094 250 201 . . 987 1777 1164 331 Explosions 4224 | . . . . . . . 554 777 697 . . . 1396 800 . Melee . | . . . . . . . . . . . . . . . . Ramming 9 | . . . . . . . . . . . . . . 9 . Kinetic 4861 | . . . . . . . . . . . . 628 1651 2251 331 Thermal 6140 | 190 986 321 546 148 . . 1195 484 267 . . 690 415 809 89 Explosive 981 | . . . . . . . . . . . . . 981 . . Electromagnetic 3077 | . . . . 34 . . 554 543 679 . . . 126 1141 . Impact . | . . . . . . . . . . . . . . . . Slashing . | . . . . . . . . . . . . . . . . Piercing . | . . . . . . . . . . . . . . . . Highest Corruption 45 | . . . . . . . . 1 2 2 6 6 . 45 45 Average Corruption 9 | . . . . . . . . 1 1 2 5 6 . 5 45 Corruption Purged . | . . . . . . . . . . . . . . . . Corruption Blocked . | . . . . . . . . . . . . . . . . Effects 135 | . . . . . . . . . 6 2 8 29 . 54 36 Message Errors 34 | . . . . . . . . . . . 1 9 . 15 9 Matter Fused 33 | . . . . . . . . . 4 . 4 5 . 12 8 Heat Flow Errors 21 | . . . . . . . . . . . 1 7 . 10 3 Energy Discharges 8 | . . . . . . . . . . 1 . 1 . 3 3 Parts Rejected 2 | . . . . . . . . . . . . 1 . . 1 Parts Fused 1 | . . . . . . . . . . . . 1 . . . Data Loss (minor) 18 | . . . . . . . . . 1 1 2 2 . 8 4 Data Loss (major) 3 | . . . . . . . . . . . . . . . 3 Misfires 3 | . . . . . . . . . . . . . . 2 1 Alerts 4 | . . . . . . . . . . . . 2 . . 2 Misdirections 2 | . . . . . . . . . . . . . . . 2 Weapon Failures 6 | . . . . . . . . . 1 . . 1 . 4 . Overload Shots . | . . . . . . . . . . . . . . . . Overflow Damage 434 | . 28 . 8 . . . 7 26 9 . . 40 250 19 47 Projectiles 285 | . 28 . 8 . . . . . . . . 40 143 19 47 Explosions 149 | . . . . . . . 7 26 9 . . . 107 . . Melee . | . . . . . . . . . . . . . . . . Knockbacks 14 | . . . . . . . . . . . . 2 3 7 2 Impact . | . . . . . . . . . . . . . . . . Kinetic 14 | . . . . . . . . . . . . 2 3 7 2 Secondary . | . . . . . . . . . . . . . . . . Self-Inflicted Damage 475 | . . . . . . . 20 59 119 . . . 71 206 . Shots 23 | . . . . . . . 2 2 9 . . . 1 9 . Rammed 1 | . . . . . . . . . . . . 1 . . . Targets Rammed 6 | . . . . . . . . . . . . 1 . 5 . Kicked 5 | . . . . . . . . . . . . . . 5 . Crushed . | . . . . . . . . . . . . . . . . Highest Temperature 336 | 90 320 336 180 46 . 8 332 219 113 . 188 307 67 316 167 Average Temperature 81 | 35 101 94 68 21 . 6 98 73 47 . 102 80 20 75 74 Received Heat Transfer 1853 | . 54 114 54 . . 9 184 244 150 27 36 330 63 378 210 Effects 3 | . . . . . . . 2 . . . . 1 . . . Energy Bleed 2 | . . . . . . . 2 . . . . . . . . Interference 1 | . . . . . . . . . . . . 1 . . . Siege Activations . | . . . . . . . . . . . . . . . . Robots Corrupted 4 | . . . . . . . . . 1 . . . . 3 . Combat Hostiles 4 | . . . . . . . . . 1 . . . . 3 . Parts Fried 15 | . . . . . . . 5 1 . . . . . 9 . Impact Corruptions . | . . . . . . . . . . . . . . . . Robots Melted 3 | . . . 1 . . . 1 . . . . 1 . . . Combat Hostiles 3 | . . . 1 . . . 1 . . . . 1 . . . Parts Melted 18 | . 2 1 4 . . . 8 . 1 . . 2 . . . Heat Transferred 10288 | 425 2087 666 1147 259 . . 2035 570 324 . . 758 300 1606 111 Parts Sabotaged 1 | . . . . . . . . . . . . . 1 . . Parts Stolen . | . . . . . . . . . . . . . . . . Parts Stripped . | . . . . . . . . . . . . . . . . Power Chain Reactions 12 | . . . . . . . 5 2 4 . . . . 1 . Missiles Intercepted . | . . . . . . . . . . . . . . . . Alert | -11 -10 -10 -9 -9 -9 -8 -8 -8 -8 -8 -6 -6 -5 -5 -5 ------- Run | Jun Mat Min Mat Min Exi Min Mat Sto Gar Rec Fac Gar Fac Gar Fac Peak Influence 3583 | 20 302 183 232 96 . . 791 523 785 352 169 1214 2034 3583 2239 Initial 1880 | . 13 49 1 86 . . . 296 245 352 110 . 637 1423 1880 Average 1022 | 7 166 92 158 66 . . 385 266 515 320 91 606 1227 2438 2054 Maximum Alert Level 5 | . 1 . 1 . . . 3 2 3 1 . 4 5 5 5 Low Security (%) 35 | 100 68 100 57 100 . 100 25 49 . . 100 24 . . . Level 1 10 | . 31 . 42 . . . 20 29 26 100 . 9 . . . Level 2 10 | . . . . . . . 38 20 55 . . 24 29 . . Level 3 6 | . . . . . . . 15 . 17 . . 29 20 . . Level 4 5 | . . . . . . . . . . . . 12 14 12 . Level 5 28 | . . . . . . . . . . . . . 35 87 43 High Security 3 | . . . . . . . . . . . . . . . 56 Max Security . | . . . . . . . . . . . . . . . . Squads Dispatched 34 | . 2 . 2 . . . 5 . . . 3 . 10 . 12 Investigation 5 | . 2 . 2 . . . . . . . . . 1 . . Extermination 2 | . . . . . . . . . . . 1 . . . 1 Reinforcement 10 | . . . . . . . 1 . . . 2 . 6 . 1 Assault 14 | . . . . . . . 2 . . . . . 3 . 9 Garrison 3 | . . . . . . . 2 . . . . . . . 1 Intercept . | . . . . . . . . . . . . . . . . Searches Triggered . | . . . . . . . . . . . . . . . . Construction Impeded 4 | . . . . . . . 1 . . . . . 2 . 1 Haulers Reinforced 4 | . . . . . . . . . . . . . 4 . . Active Scanning Responses . | . . . . . . . . . . . . . . . . Cargo Convoy Interrupts . | . . . . . . . . . . . . . . . . Stealth | -11 -10 -10 -9 -9 -9 -8 -8 -8 -8 -8 -6 -6 -5 -5 -5 --------- Run | Jun Mat Min Mat Min Exi Min Mat Sto Gar Rec Fac Gar Fac Gar Fac Distress Signals 10 | . 2 . 3 . . . . . . . . . 3 . 2 Communications Jammed . | . . . . . . . . . . . . . . . . Distress Signals . | . . . . . . . . . . . . . . . . Times Spotted 356 | . 20 6 12 27 . 10 41 14 20 8 9 38 39 58 54 Peak Tracking Total 27 | . 5 3 5 14 . 4 5 8 4 5 6 5 11 9 27 Tactical Retreats 25 | . 2 1 . 1 . . . 2 4 1 2 1 1 5 5 Traps | -11 -10 -10 -9 -9 -9 -8 -8 -8 -8 -8 -6 -6 -5 -5 -5 ------- Run | Jun Mat Min Mat Min Exi Min Mat Sto Gar Rec Fac Gar Fac Gar Fac Traps Triggered 31 | . 3 . 1 . . . . 3 5 . 3 3 . 13 . Indirectly 4 | . . . . . . . . 1 2 . . . . 1 . Trap Hack Attempts 16 | . . . . . . . . . . . 16 . . . . Triggered 1 | . . . . . . . . . . . 1 . . . . Disarmed 4 | . . . . . . . 4 . . . . . . . . Reprogrammed 2 | . . . . . . . 1 . . . 1 . . . . Reused 1 | . . . . . . . 1 . . . . . . . . Traps Extracted . | . . . . . . . . . . . . . . . . Installed . | . . . . . . . . . . . . . . . . Triggered 1 | . . . . . . . 1 . . . . . . . . Machines | -11 -10 -10 -9 -9 -9 -8 -8 -8 -8 -8 -6 -6 -5 -5 -5 ---------- Run | Jun Mat Min Mat Min Exi Min Mat Sto Gar Rec Fac Gar Fac Gar Fac Machines Disabled 41 | . . . . 1 . . 7 2 1 . . 7 12 8 3 Max in Single Turn 9 | . . . . 1 . . 1 1 1 . . 2 9 2 1 Garrison Access 2 | . . . . . . . 1 . . . . . . . 1 Garrison Relay 9 | . . . . . . . . . 1 . . 4 . 4 . Phase Generator 2 | . . . . . . . . . . . . 1 . 1 . Machines Repaired . | . . . . . . . . . . . . . . . . Machines Sabotaged . | . . . . . . . . . . . . . . . . Overloaded Fab Kills . | . . . . . . . . . . . . . . . . Hacking | -11 -10 -10 -9 -9 -9 -8 -8 -8 -8 -8 -6 -6 -5 -5 -5 --------- Run | Jun Mat Min Mat Min Exi Min Mat Sto Gar Rec Fac Gar Fac Gar Fac Machines Accessed 54 | . 7 . 5 1 5 . 9 5 3 1 7 2 5 3 1 Terminals 34 | . 6 . 3 . . . 7 3 3 1 2 2 3 3 1 Fabricators 2 | . . . . . . . . . . . 2 . . . . Repair Stations 5 | . 1 . 2 . . . . 1 . . 1 . . . . Recycling Units . | . . . . . . . . . . . . . . . . Scanalyzers 4 | . . . . . . . 2 . . . 1 . 1 . . Garrison Access 3 | . . . . . . . . 1 . . 1 . 1 . . Total Hacks 196 | . 24 . 12 1 50 . 47 17 6 4 12 7 10 4 2 Successful 127 | . 11 . 6 1 50 . 32 10 2 1 6 2 5 1 . Failed 68 | . 13 . 6 . . . 14 7 4 3 6 5 5 3 2 Catastrophic 16 | . 3 . 2 . . . 1 . 4 1 1 . 2 1 1 Database Lockouts 1 | . . . . . . . 1 . . . . . . . . Manual 40 | . 8 . 3 . 1 . 6 11 2 2 . 1 5 1 . Terminals 100 | . 18 . 8 . . . 29 13 6 4 3 7 6 4 2 Fabricators 4 | . . . . . . . . . . . 4 . . . . Repair Stations 14 | . 6 . 4 . . . . 2 . . 2 . . . . Recycling Units . | . . . . . . . . . . . . . . . . Scanalyzers 23 | . . . . . . . 18 . . . 2 . 3 . . Garrison Access 4 | . . . . . . . . 2 . . 1 . 1 . . Terminal Hacks 88 | . 5 . 2 1 50 . 15 7 2 1 . 2 2 1 . Record 52 | . . . 1 . 49 . 2 . . . . . . . . Robot Analysis 6 | . 2 . . . . . 3 1 . . . . . . . Prototype ID Bank 4 | . 1 . . . . . 2 1 . . . . . . . Open Door 2 | . . . . 1 . . . . . . . . . 1 . Level Access Points 2 | . . . . . . . 1 1 . . . . . . . Emergency Access Points 3 | . . . . . . . 1 . 1 . . 1 . . . Terminal Index 1 | . . . . . . . . 1 . . . . . . . Alert Level 2 | . . . . . . . 2 . . . . . . . . Unreport Threat 2 | . . . . . . . . 2 . . . . . . . Locate Traps 1 | . . . . . . . 1 . . . . . . . . Disarm Traps 1 | . . . . . . . 1 . . . . . . . . Reprogram Traps 1 | . . . . . . . 1 . . . . . . . . Dispatch Records 1 | . 1 . . . . . . . . . . . . . . Recall Investigation 2 | . 1 . . . . . . . . . . . 1 . . Recall Reinforcements 1 | . . . . . . . . . . . . . 1 . . Registered Components 1 | . . . . . . . 1 . . . . . . . . Zone Layout 3 | . . . 1 . . . . 1 . 1 . . . . . Garrison Registry 2 | . . . . . . . . . 1 . . 1 . . . EX-Prototype ID Bank 1 | . . . . . 1 . . . . . . . . . . Fabricator Hacks 2 | . . . . . . . . . . . 2 . . . . Build 2 | . . . . . . . . . . . 2 . . . . Repair Station Hacks 13 | . 6 . 4 . . . . 2 . . 1 . . . . Scan Component 6 | . 3 . 2 . . . . 1 . . . . . . . Repair 6 | . 3 . 2 . . . . 1 . . . . . . . Refit 1 | . . . . . . . . . . . 1 . . . . Recycling Unit Hacks . | . . . . . . . . . . . . . . . . Scanalyzer 21 | . . . . . . . 17 . . . 2 . 2 . . Insert Component 11 | . . . . . . . 9 . . . 1 . 1 . . Analyze 10 | . . . . . . . 8 . . . 1 . 1 . . Garrison Access Hacks 3 | . . . . . . . . 1 . . 1 . 1 . . Unlock Access 3 | . . . . . . . . 1 . . 1 . 1 . . Unauthorized Hacks . | . . . . . . . . . . . . . . . . Terminals . | . . . . . . . . . . . . . . . . Fabricators . | . . . . . . . . . . . . . . . . Repair Stations . | . . . . . . . . . . . . . . . . Recycling Units . | . . . . . . . . . . . . . . . . Scanalyzers . | . . . . . . . . . . . . . . . . Garrison Access . | . . . . . . . . . . . . . . . . Data Cores Recovered 2 | . 2 . . . . . . . . . . . . . . Used 1 | . 1 . . . . . . . . . . . . . . Hacking Detections 42 | . 7 . 5 . . . 5 4 3 1 7 2 5 2 1 Full Trace Events 3 | . . . 1 . . . . . . . . 1 . 1 . Feedback Events . | . . . . . . . . . . . . . . . . Feedback Blocked . | . . . . . . . . . . . . . . . . Robot Schematics Acquired . | . . . . . . . . . . . . . . . . Robots Built 4 | . . . . . . . . . . . 4 . . . . Authchips . | . . . . . . . . . . . . . . . . Time 143 | . . . . . . . . . . . 143 . . . . Total Robot Build Rating 17 | . . . . . . . . . . . 17 . . . . Part Schematics Acquired 10 | . . . . . . . 8 . . . 1 . 1 . . Parts Built . | . . . . . . . . . . . . . . . . Authchips . | . . . . . . . . . . . . . . . . Time . | . . . . . . . . . . . . . . . . Total Part Build Rating . | . . . . . . . . . . . . . . . . Parts Repaired 6 | . 3 . 2 . . . . 1 . . . . . . . Time 156 | . 78 . 52 . . . . 26 . . . . . . . Parts Recycled . | . . . . . . . . . . . . . . . . Recycled Matter . | . . . . . . . . . . . . . . . . Retrieved Matter . | . . . . . . . . . . . . . . . . Retrieved Components . | . . . . . . . . . . . . . . . . Parts Scanalyzed 10 | . . . . . . . 8 . . . 1 . 1 . . Part Schematics Acquired 10 | . . . . . . . 8 . . . 1 . 1 . . Parts Damaged . | . . . . . . . . . . . . . . . . Bothacking | -11 -10 -10 -9 -9 -9 -8 -8 -8 -8 -8 -6 -6 -5 -5 -5 ------------ Run | Jun Mat Min Mat Min Exi Min Mat Sto Gar Rec Fac Gar Fac Gar Fac Used RIF Installer 2 | . . . . . . . . . 1 . . 1 . . . Robot Detection 1 | . . . . . . . . . . . . 1 . . . Robots Hacked 39 | . . 2 . . . 6 . . . 1 2 11 3 . 14 Non-combat 13 | . . 2 . . . 6 . . . . 1 . . . 4 Combat 26 | . . . . . . . . . . 1 1 11 3 . 10 Robot Hacks Applied 40 | . . 2 . . . 6 . . . 1 2 11 3 . 15 parse_system 6 | . . 2 . . . 3 . . . . . 1 . . . no_distress 5 | . . . . . . 3 . . . . . . . . 2 start_evac 2 | . . . . . . . . . . . 1 . . . 1 ignore_repairs 1 | . . . . . . . . . . . . . . . 1 overload_power 1 | . . . . . . . . . . . . . . . 1 amplify_resonance 2 | . . . . . . . . . . . . . . . 2 overwrite_iff 3 | . . . . . . . . . . . . 2 1 . . formatsys_low 1 | . . . . . . . . . . . . . . . 1 formatsys_high 19 | . . . . . . . . . . 1 1 8 2 . 7 Relay Couplers Released 39 | . . . . . . . . . 3 . . 16 . 18 2 Machine Destruction 39 | . . . . . . . . . 3 . . 16 . 18 2 Attached 25 | . . . . . . . . . 1 1 1 11 . 9 2 Fabnet Peak Effective % . | . . . . . . . . . . . . . . . . Robots Rewired 36 | . . . . . . . . . . 5 . 19 1 11 . Allies Hacked 7 | . . . . . . . . . . 2 . 3 . 1 1 Hacks Repelled . | . . . . . . . . . . . . . . . . Allies | -11 -10 -10 -9 -9 -9 -8 -8 -8 -8 -8 -6 -6 -5 -5 -5 -------- Run | Jun Mat Min Mat Min Exi Min Mat Sto Gar Rec Fac Gar Fac Gar Fac Total Allies 69 | . . 2 . . . . . . . 6 5 29 4 15 8 Largest Group 17 | . . 2 1 . . . . . . 2 4 16 17 6 3 Highest-Rated Group 475 | . . 62 31 . . . . . . 37 119 428 475 294 139 Highest-Rated Ally 95 | . . 31 31 . . . . . . 27 30 47 49 95 49 Total Orders 4 | . . . . . . 4 . . . . . . . . . EXPLORE 1 | . . . . . . 1 . . . . . . . . . RETURN 3 | . . . . . . 3 . . . . . . . . . Ally Attacks 450 | . . 8 18 . . 10 6 . . 6 16 119 164 60 43 Total Damage 11672 | . . 21 292 . . . . . . 127 313 2383 4746 2525 1265 Kills 84 | . . . 4 . . . . . . . . 19 34 20 7 Allies Corrupted 7 | . . . . . . . . . . . 1 . 1 2 3 Allies Melted . | . . . . . . . . . . . . . . . . Intel | -11 -10 -10 -9 -9 -9 -8 -8 -8 -8 -8 -6 -6 -5 -5 -5 ------- Run | Jun Mat Min Mat Min Exi Min Mat Sto Gar Rec Fac Gar Fac Gar Fac Robot Analysis Total 6 | . 2 . . . . . 3 1 . . . . . . . Derelict Logs Recovered 2 | . . 1 . 1 . . . . . . . . . . . Drone Launches 20 | . . . . . . 14 6 . . . . . . . . Drone Recoveries 4 | . . . . . . 4 . . . . . . . . . Exploration | -11 -10 -10 -9 -9 -9 -8 -8 -8 -8 -8 -6 -6 -5 -5 -5 ------------- Run | Jun Mat Min Mat Min Exi Min Mat Sto Gar Rec Fac Gar Fac Gar Fac Turns Passed 11124 | 135 936 653 365 241 269 666 838 235 513 201 600 1379 460 3053 580 Spaces Moved 11808 | 89 912 921 346 290 430 681 965 192 689 507 1113 1477 553 2112 531 Core 40 | 2 . . . . . . . . . . . 33 . 5 . Treads . | . . . . . . . . . . . . . . . . Legs 619 | . . . . . . . . . . . 81 195 . 42 301 Wheels 297 | 87 210 . . . . . . . . . . . . . . Hover 6167 | . 702 921 346 290 430 681 . . . . 9 863 553 1372 . Flight 4685 | . . . . . . . 965 192 689 507 1023 386 . 693 230 Fastest Speed 26 | 50 56 56 56 56 56 56 50 50 26 28 37 26 56 26 45 Average Speed 62 | 88 66 56 56 56 56 57 50 50 36 32 47 57 56 94 91 Slowest Speed 260 | 90 120 120 116 120 56 116 50 50 69 37 120 150 56 260 120 Overloaded Moves . | . . . . . . . . . . . . . . . . Propulsion Burnouts . | . . . . . . . . . . . . . . . . Robots Hopped 28 | . . . . . . . 4 1 . 12 4 . . 1 6 Cave-ins Triggered . | . . . . . . . . . . . . . . . . Exploration Rate (%) 60 | 6 96 99 33 50 89 90 77 46 81 71 20 93 16 87 20 Regions Visited 15 Branch Regions 6 Pre-discovered Areas 3 | . . 1 . 1 1 . . . . . . . . . . Known Exits Taken 3 | . . . . . . . . 1 . . 1 . 1 . . Unknown Exits Taken 9 | 1 1 1 1 1 1 1 1 . . 1 . . . . . Scrap Searched 3 | . . 1 . 1 . 1 . . . . . . . . . Spaces Dug 21 | . . . . . . . 1 2 . . . 5 2 11 . Terrain Destroyed 319 | . . . . . . . 40 38 19 . . 67 66 84 5 Melee . | . . . . . . . . . . . . . . . . Projectile 109 | . . . . . . . 23 16 . . . 16 15 34 5 AOE 210 | . . . . . . . 17 22 19 . . 51 51 50 . Terrain Rammed . | . . . . . . . . . . . . . . . . Walls Destroyed . | . . . . . . . . . . . . . . . . Machines Disabled . | . . . . . . . . . . . . . . . . Actions | -11 -10 -10 -9 -9 -9 -8 -8 -8 -8 -8 -6 -6 -5 -5 -5 --------- Run | Jun Mat Min Mat Min Exi Min Mat Sto Gar Rec Fac Gar Fac Gar Fac Total 14720 | 115 1157 1027 475 349 461 956 1199 292 915 533 1178 1937 636 2895 595 Wait 1285 | . 126 71 66 37 19 251 100 65 103 8 22 153 10 236 18 Move 11745 | 88 911 920 345 289 429 680 956 190 688 484 1105 1476 553 2109 522 Hop 23 | . . . . . . . 4 1 . 10 4 . . 1 3 Pick Up 104 | 4 15 4 7 2 2 . 13 4 16 1 4 17 2 13 . Fast Attach 175 | 7 7 1 3 . . . 5 2 6 . 12 29 8 85 10 Attach 68 | 1 2 2 2 4 4 7 9 . 15 2 2 10 3 4 1 Detach 61 | . 1 . 1 . 4 7 6 . 13 1 2 8 2 13 3 Swap 52 | 1 10 1 4 1 . 2 8 1 4 . . 9 2 9 . Drop 182 | 1 20 5 8 . 3 2 15 2 14 2 8 34 7 53 8 Fire 626 | 13 65 21 39 16 . 1 83 24 41 3 . 67 44 180 29 Melee 35 | . . 2 . . . 6 . . . . 3 11 . 13 . Ram 1 | . . . . . . . . . . . . 1 . . . Kick 5 | . . . . . . . . . . . . . . 5 . Crush . | . . . . . . . . . . . . . . . . Escape Stasis 127 | . . . . . . . . 3 15 . . 17 . 92 . Rewire 215 | . . . . . . . . . . 22 . 105 5 82 1 Trap 16 | . . . . . . . . . . . 16 . . . . Miscellaneous . | . . . . . . . . . . . . . . . . Route ------- -11/Junkyard -10/Materials (discovered 4 exits: *Mat x3 / [*Min]) -10/Mines (discovered 2 exits: *Mat x2) -9/Materials (discovered 2 exits: *Mat / *Min) -9/Mines -9/Exiles (discovered 2 exits: [*Min x2]) -8/Mines -8/Materials (discovered 5 exits: *Fac x3 / *Sto x2) -8/Storage (discovered 2 exits: *Fac / Gar) -8/Garrison (discovered 3 exits: *Rec x3) -8/Recycling -6/Factory -6/Garrison (discovered 3 exits: *Fac x3) -5/Factory -5/Garrison (discovered 3 exits: *Fac x3) -5/Factory (discovered 2 exits: [*Fac x2]) History --------- Turn | Location | Event 18 | -11/Junkyard | Discovered new exit (range 16) 136 | -11/Junkyard | Entered Materials 322 | -10/Materials | Build established: Mutant 331 | -10/Materials | Discovered new exit (range 7) 631 | -10/Materials | Discovered new exit (range 16) 704 | -10/Materials | Build established: Scavenger-Mutant 772 | -10/Materials | Discovered new exit (range 12) 941 | -10/Materials | Discovered new exit (range 14) 983 | -10/Materials | Repaired Hover Unit 1010 | -10/Materials | Repaired Hover Unit 1038 | -10/Materials | Repaired Hover Unit 1072 | -10/Materials | Entered Mines 1089 | -10/Mines | Core integrity fell below 50% 1131 | -10/Mines | Received a Mining Laser from a helpful Derelict 1165 | -10/Mines | Met a Derelict bent on vengeance 1237 | -10/Mines | Discovered new exit (range 5) 1239 | -10/Mines | Build established: Mutant 1296 | -10/Mines | Learned location of Zion (-7) 1308 | -10/Mines | Discovered new exit (range 8) 1450 | -10/Mines | Escorted by a lone wolf Derelict 1725 | -10/Mines | Entered Materials 1725 | -9/Materials | Accompanied by 1 ally 1725 | -9/Materials | Evolved 2 slots: Utility x2 1821 | -9/Materials | Discovered new exit (range 14) 1849 | -9/Materials | Met 8R-AWN 1912 | -9/Materials | Repaired Hover Unit 1927 | -9/Materials | Discovered new exit (range 15) 1993 | -9/Materials | Repaired Beam Cannon 2090 | -9/Materials | Entered Mines 2091 | -9/Mines | Followed 8R-AWN into the Mines 2099 | -9/Mines | Assembled infested the area 2104 | -9/Mines | Assisted by a Guerilla fighting off Assembled 2211 | -9/Mines | Lost 4 parts (2n1u1w) 2232 | -9/Mines | Learned location of Recycling (-8) 2268 | -9/Mines | Found the Drone Emporium 2271 | -9/Mines | Found Prototype Device 2329 | -9/Mines | Discovered new exit (range 5) 2331 | -9/Mines | Entered Exiles 2340 | -9/Exiles | Discovered new exit (range 15) 2347 | -9/Exiles | Welcomed by 8R-AWN 2355 | -9/Exiles | Met EX-HEX 2411 | -9/Exiles | Met EX-BIN 2419 | -9/Exiles | Aligned with FarCom system 2419 | -9/Exiles | Given EX-Vault access code 2442 | -9/Exiles | Opened EX-Vault 2448 | -9/Exiles | Identified Bomb Drone Bay 2454 | -9/Exiles | Found Flying Fortress v7 2470 | -9/Exiles | Warned to stay clear of 0b10 Research branches 2486 | -9/Exiles | Met EX-DEC 2513 | -9/Exiles | Visited The Gauntlet 2594 | -9/Exiles | Discovered new exit (range 12) 2600 | -9/Exiles | Left Exiles lab with Flying Fortress v7 2600 | -9/Exiles | Entered Mines 2743 | -8/Mines | Build established: Scavenger-Mutant 3051 | -8/Mines | Core integrity fell below 50% 3258 | -8/Mines | Discovered new exit (range 9) 3266 | -8/Mines | Entered Materials 3266 | -8/Materials | Evolved 2 slots: Propulsion x2 3270 | -8/Materials | Discovered new exit (range 7) 3338 | -8/Materials | Build established: Mutant 3375 | -8/Materials | Garrison activated, responded to threat 3621 | -8/Materials | Discovered new exit (range 4) 3691 | -8/Materials | Discovered new exit (range 5) 3826 | -8/Materials | Central database locked down 3853 | -8/Materials | Identified exit to Factory 4066 | -8/Materials | First assault squad dispatched 4071 | -8/Materials | Discovered new exit (range 14) 4099 | -8/Materials | Build established: Hacker-Mutant 4104 | -8/Materials | Entered Storage 4153 | -8/Storage | Repaired Sml. Storage Unit 4339 | -8/Storage | Identified exit to Garrison 4339 | -8/Storage | Entered Garrison 4374 | -8/Garrison | Triggered checkpoint 4565 | -8/Garrison | Discovered new exit (range 3) 4577 | -8/Garrison | Discovered new exit (range 76) 4577 | -8/Garrison | Discovered new exit (range 13) 4577 | -8/Garrison | Discovered new exit (range 43) 4595 | -8/Garrison | Installed Relay Interface Framework 4644 | -8/Garrison | Triggered checkpoint 4819 | -8/Garrison | Garrison Relay disabled 4852 | -8/Garrison | Entered Recycling 4920 | -8/Recycling | P-60 Hacker assimilated allied Commando 3a 4974 | -8/Recycling | Lost 3 parts (2n1u) 5050 | -8/Recycling | Discovered new exit (range 10) 5053 | -8/Recycling | Entered Factory 5053 | -6/Factory | Evolved 4 slots: Utility x4 5161 | -6/Factory | Fabricated R-10 Processor? 5238 | -6/Factory | Build established: Bothacker-Mutant 5572 | -6/Factory | Fabricated L-41 Fighter? 5653 | -6/Factory | Identified exit to Garrison 5653 | -6/Factory | Entered Garrison 5686 | -6/Garrison | Triggered checkpoint 5734 | -6/Garrison | Garrison Relay disabled 5814 | -6/Garrison | Triggered checkpoint 5847 | -6/Garrison | Lost 3 parts (2n1u) 6070 | -6/Garrison | Triggered checkpoint 6124 | -6/Garrison | Discovered new exit (range 12) 6158 | -6/Garrison | Triggered checkpoint 6219 | -6/Garrison | Phase Generator disabled 6220 | -6/Garrison | Spotted B-75 Beast 6295 | -6/Garrison | Spotted B-75 Beast 6297 | -6/Garrison | Expanded RIF knowledge: Robot Detection 6298 | -6/Garrison | Triggered checkpoint 6321 | -6/Garrison | Found Antimissile System 6374 | -6/Garrison | Discovered new exit (range 12) 6412 | -6/Garrison | Identified exit to Factory 6424 | -6/Garrison | Triggered checkpoint 6453 | -6/Garrison | Garrison Relay disabled 6454 | -6/Garrison | Triggered checkpoint 6479 | -6/Garrison | Discovered exit to Factory (range 12) 6479 | -6/Garrison | Discovered exit to Factory (range 46) 6479 | -6/Garrison | Discovered exit to Factory (range 84) 6634 | -6/Garrison | Garrison Relay disabled 6766 | -6/Garrison | Found Relay Coupler [Proto] 6768 | -6/Garrison | Found Relay Coupler [Proto] 6770 | -6/Garrison | Found Relay Coupler [Proto] 6772 | -6/Garrison | Found Relay Coupler [Proto] 6793 | -6/Garrison | Build established: Bothacker-Scout 6956 | -6/Garrison | Garrison Relay disabled 7032 | -6/Garrison | Entered Factory 7032 | -5/Factory | Accompanied by 16 allies 7032 | -5/Factory | Evolved 2 slots: Power x1, Weapon x1 7332 | -5/Factory | Build established: Commander-Mutant 7332 | -5/Factory | First assault squad dispatched 7492 | -5/Factory | Identified exit to Garrison 7492 | -5/Factory | Entered Garrison 7520 | -5/Garrison | Triggered checkpoint 7674 | -5/Garrison | Triggered checkpoint 7811 | -5/Garrison | Build established: Hacker-Mutant 7864 | -5/Garrison | Phase Generator disabled 7874 | -5/Garrison | Garrison Relay disabled 7920 | -5/Garrison | Found embedded Infiltrators 8010 | -5/Garrison | Triggered checkpoint 8012 | -5/Garrison | Triggered checkpoint 8131 | -5/Garrison | Lost 12 parts (7n2u3w) 8191 | -5/Garrison | Lost 3 parts (2n1u) 8257 | -5/Garrison | Discovered new exit (range 13) 8406 | -5/Garrison | Build established: Scavenger-Skirmisher 8586 | -5/Garrison | Triggered checkpoint 8696 | -5/Garrison | Lost 7 parts (1p2n1u3w) 8816 | -5/Garrison | Rescued a captive Derelict 8816 | -5/Garrison | Rescued a captive Derelict 8832 | -5/Garrison | Core integrity fell below 50% 8842 | -5/Garrison | Triggered checkpoint 8860 | -5/Garrison | Lost 5 parts (2p2n1w) 8920 | -5/Garrison | Garrison Relay disabled 8962 | -5/Garrison | P-70 Sage assimilated allied Sentinel 6b 9012 | -5/Garrison | Lost 4 parts (2n1u1w) 9080 | -5/Garrison | Triggered checkpoint 9186 | -5/Garrison | Lost 4 parts (4p) 9276 | -5/Garrison | Build established: Scavenger-Mutant 9455 | -5/Garrison | Discovered new exit (range 14) 9513 | -5/Garrison | Garrison Relay disabled 9598 | -5/Garrison | Triggered checkpoint 9604 | -5/Garrison | Triggered checkpoint 9604 | -5/Garrison | Triggered checkpoint 10219 | -5/Garrison | Discovered new exit (range 13) 10325 | -5/Garrison | Garrison Relay disabled 10468 | -5/Garrison | System corruption reached 10% 10514 | -5/Garrison | System corruption reached 30% 10545 | -5/Garrison | Entered Factory 10545 | -5/Factory | Accompanied by 2 allies 10799 | -5/Factory | High security lockdown imminent 10879 | -5/Factory | High security lockdown engaged 10898 | -5/Factory | Build established: Bothacker-Mutant 11048 | -5/Factory | Discovered new exit (range 16) 11057 | -5/Factory | Core integrity fell below 20% 11093 | -5/Factory | Lost 3 parts (2n1u) 11114 | -5/Factory | Discovered new exit (range 16) 11125 | -5/Factory | Destroyed by Y-64 Sentinel with Wave Gun Last Messages --------------- 11068_ Y-64 Sentinel system terminally corrupted. 11077_ System corrupted: Component data lost. 11080_ Acquired Imp. Plasma Cutter. 11088_ C-30 ARC bursts open, deploying its payload. 11088_ G-50 Soldier unfolds itself. 11088_ M-28 Smith unfolds itself. 11092_ System corrupted: IFF burst signal emitted. 11098_ Lgt. Fission Core destroyed. 11099_ Critical hit (Burn: +37). 11102_ C-30 ARC bursts open, deploying its payload. 11102_ G-67 Veteran unfolds itself. 11102_ G-50 Soldier unfolds itself. 11102_ I-47 Archangel unfolds itself. 11110_ System corrupted: Energy discharge (-96). 11113_ Penetrated by Slug. 11114_ EXIT=FOUND 11124_ Adv. Weight Redist. System destroyed. 11124_ Imp. Target Analyzer destroyed. 11124_ Penetrated by Slug. 11124_ Imp. Plasma Cutter destroyed. Map ----- +----------------------------------------------------+ | [" ! ## """ #?# #????? | | ""############ """ #?# #????? | | #???# #?#l #????? | | #???# """ #?#l #????? | | < #???# """ #?# #????? | | #???# """ ###g ^#????? | | #???# # +????? | | ####"###"####???# """ # #????? | | ??? ? ?????# """ # g #????? | | ??? """ ????# """ # l #????? | | ??? """ ??# # #????? | | ??? """ ########## #????? | | ??? ?? ?= # #gg #????? | | ??? ????????= # #g #????? | | ??? ????????? ?# #ggg #????? | | ??? ???????????# # #????? | | ??? ???????????# gg #????? | | ???????????????# / g# #????? | | ###????????????# # #????? | | #????????????# ! # #????? | | #????????????# % #????? | | #????????????##########Y #????? | | #?????????????????????#YH #????? | | #?????????????????????; Y #????? | | #?????????????????????#YY #????? | | #?????????????????????#@ #????? | | #?????????????????????# #????? | | #????????????????????? #???? | | #????????????????????? #???? | | #????????????????????# #???? | | #????????????????????#